fUSD/lending_fUSD_20250426
["ID","MTS","AMOUNT","RATE_DAILY","PERIOD"]
[359021815,1745657091799,-607.34875594,0.0001997,2]
[359021816,1745657091830,-500.0,0.0001997,2]
[359021817,1745657091863,-540.21005062,0.0001997,2]
[359021818,1745657091894,-500.0,0.0001997,2]
[359021819,1745657091924,-508.1729048,0.0001997,2]
[359021820,1745657091954,-698.42,0.0001997,2]
[359021821,1745657091985,-500.0,0.0001997,2]
[359021822,1745657092015,-513.24002997,0.0001997,2]
[359021823,1745657092046,-500.0,0.0001997,2]
[359021824,1745657092076,-500.87308789,0.0001997,2]
[359021825,1745657092107,-990.47,0.0001997,2]
[359021826,1745657092383,-518.05202233,0.0001997,2]
[359021827,1745657092415,-500.0,0.0001997,2]
[359021828,1745657092446,-505.26265483,0.0001997,2]
[359021829,1745657092477,-500.0,0.0001997,2]
[359021830,1745657092509,-886.81,0.0001997,2]
[359021831,1745657092540,-564.00120046,0.0001997,2]
[359021832,1745657092572,-500.0,0.0001997,2]
[359021833,1745657092603,-517.40781598,0.0001997,2]
[359021834,1745657092634,-508.39293014,0.0001997,2]
[359021835,1745657092665,-500.0,0.0001997,2]
[359021836,1745657092700,-506.68102439,0.0001997,2]
[359021837,1745657092732,-1000.0,0.0001997,2]
[359021838,1745657092764,-500.0,0.0001997,2]
[359021839,1745657092794,-500.0,0.0001997,2]
[359021840,1745657092824,-312.41181277,0.0001997,2]
[359021841,1745657092858,-500.0,0.0001997,2]
[359021842,1745657092888,-915.77,0.0001997,2]
[359021843,1745657092918,-500.6993516,0.0001997,2]
[359021844,1745657092951,-500.0,0.0001997,2]
[359021845,1745657092981,-497.4262606,0.0001997,2]
[359021846,1745657093014,-500.0,0.0001997,2]
[359021847,1745657093046,-500.0,0.0001997,2]
[359021848,1745657093078,-550.44,0.0001997,2]
[359021849,1745657093109,-502.35528974,0.0001997,2]
[359021850,1745657093141,-500.0,0.0001997,2]
[359021851,1745657093174,-506.96651947,0.0001997,2]
[359021852,1745657093206,-1169.23,0.0001997,2]
[359021853,1745657093239,-503.55244292,0.0001997,2]
[359021854,1745657093271,-529.78697651,0.0001997,2]
[359021855,1745657093302,-559.33071153,0.0001997,2]
[359021856,1745657093333,-520.84275205,0.0001997,2]
[359021857,1745657093364,-505.41447719,0.0001997,2]
[359021858,1745657093396,-500.0,0.0001997,2]
[359021859,1745657093427,-504.33378706,0.0001997,2]
[359021860,1745657093459,-503.15250657,0.0001997,2]
[359021861,1745657093491,-500.0,0.0001997,2]
[359021862,1745657093524,-971.64,0.0001997,2]
[359021863,1745657093556,-500.0,0.0001997,2]
[359021864,1745657093588,-503.69403164,0.0001997,2]
[359021865,1745657093619,-173.73949344,0.0001997,2]
[359021866,1745657093653,-500.0,0.0001997,2]
[359021867,1745657093684,-500.91743447,0.0001997,2]
[359021868,1745657093716,-508.36097346,0.0001997,2]
[359021869,1745657093750,-500.0,0.0001997,2]
[359021870,1745657093781,-527.64475719,0.0001997,2]
[359021871,1745657093818,-500.0,0.0001997,2]
[359021872,1745657093850,-500.0,0.0001997,2]
[359021873,1745657094090,-500.0,0.0001997,2]
[359021874,1745657094124,-414.43288813,0.0001997,2]
[359021875,1745657094157,-507.34098258,0.0001997,2]
[359021876,1745657094189,-500.0,0.0001997,2]
[359021877,1745657094221,-500.0,0.0001997,2]
[359021878,1745657094254,-499.9998916,0.0001997,2]
[359021879,1745657094286,-856.85,0.0001997,2]
[359021880,1745657094317,-500.0,0.0001997,2]
[359021881,1745657094348,-507.95,0.0001997,2]
[359021882,1745657094379,-500.0,0.0001997,2]
[359021883,1745657094413,-624.67048089,0.0001997,2]
[359021884,1745657094446,-500.0,0.0001997,2]
[359021885,1745657094479,-500.0,0.0001997,2]
[359021886,1745657094511,-1014.34,0.0001997,2]
[359021887,1745657094541,-582.84564597,0.0001997,2]
[359021888,1745657094572,-500.0,0.0001997,2]
[359021889,1745657094603,-504.36569225,0.0001997,2]
[359021890,1745657094634,-500.0,0.0001997,2]
[359021891,1745657094664,-500.0,0.0001997,2]
[359021892,1745657094695,-500.0,0.0001997,2]
[359021893,1745657094725,-500.0,0.0001997,2]
[359021894,1745657094755,-504.14944686,0.0001997,2]
[359021895,1745657094785,-500.0,0.0001997,2]
[359021896,1745657094814,-500.0,0.0001997,2]
[359021897,1745657094847,-500.0,0.0001997,2]
[359021898,1745657094883,-598.30404371,0.0001997,2]
[359021899,1745657094915,-525.33,0.0001997,2]
[359021900,1745657094946,-500.0,0.0001997,2]
[359021901,1745657094976,-500.0,0.0001997,2]
[359021902,1745657095007,-500.0,0.0001997,2]
[359021903,1745657095038,-516.96989411,0.0001997,2]
[359021904,1745657095071,-500.0,0.0001997,2]
[359021905,1745657095104,-500.0,0.0001997,2]
[359021906,1745657095138,-500.0,0.0001997,2]
[359021907,1745657095171,-500.0,0.0001997,2]
[359021908,1745657095202,-500.0,0.0001997,2]
[359021909,1745657095234,-500.0,0.0001997,2]
[359021910,1745657095265,-500.0,0.0001997,2]
[359021911,1745657095296,-866.07,0.0001997,2]
[359021912,1745657095326,-500.0,0.0001997,2]
[359021913,1745657095357,-193.670618,0.0001997,2]
[359021914,1745657095388,-500.0,0.0001997,2]
[359021915,1745657095421,-791.39,0.0001997,2]
[359021916,1745657095455,-500.0,0.0001997,2]
[359021917,1745657095489,-502.19,0.0001997,2]
[359021918,1745657095524,-1101.553365,0.0001997,2]
[359021919,1745657095557,-500.0,0.0001997,2]
[359021920,1745657095793,-500.0,0.0001997,2]
[359021921,1745657095828,-507.55399226,0.0001997,2]
[359021922,1745657095866,-536.5693563,0.0001997,2]
[359021923,1745657095898,-526.57109597,0.0001997,2]
[359021924,1745657095931,-500.0,0.0001997,2]
[359021925,1745657095962,-532.16187226,0.0001997,2]
[359021926,1745657095993,-500.0,0.0001997,2]
[359021927,1745657096027,-500.0,0.0001997,2]
[359021928,1745657096058,-166.423983,0.0001997,2]
[359021929,1745657096091,-500.0,0.0001997,2]
[359021930,1745657096125,-500.0,0.0001997,2]
[359021931,1745657096159,-500.0,0.0001997,2]
[359021932,1745657096192,-500.0,0.0001997,2]
[359021933,1745657096225,-500.0,0.0001997,2]
[359021934,1745657096256,-164.438316,0.0001997,2]
[359021935,1745657096287,-500.0,0.0001997,2]
[359021936,1745657096318,-11476.84839,0.0001997,2]
[359021937,1745657096349,-675.8,0.0001997,2]
[359021938,1745657096379,-762.58,0.0001997,2]
[359021939,1745657096410,-500.0,0.0001997,2]
[359021940,1745657096440,-750.5,0.0001997,2]
[359021941,1745657096471,-522.75550445,0.0001997,2]
[359021942,1745657096500,-434.07726181,0.0001997,2]
[359021943,1745657096531,-500.0,0.0001997,2]
[359021944,1745657096563,-500.0,0.0001997,2]
[359021945,1745657096594,-508.26320984,0.0001997,2]
[359021946,1745657096624,-500.0,0.0001997,2]
[359021947,1745657096655,-501.21586156,0.0001997,2]
[359021948,1745657096687,-1091.24757,0.0001997,2]
[359021949,1745657096718,-579.33849222,0.0001997,2]
[359021950,1745657096749,-500.0,0.0001997,2]
[359021951,1745657096780,-956.37,0.0001997,2]
[359021952,1745657096812,-1056.19,0.0001997,2]
[359021953,1745657096842,-500.0,0.0001997,2]
[359021954,1745657096873,-528.15773639,0.0001997,2]
[359021955,1745657096903,-500.0,0.0001997,2]
[359021956,1745657096933,-500.0,0.0001997,2]
[359021957,1745657096964,-399.15204074,0.0001997,2]
[359021958,1745657096995,-500.0,0.0001997,2]
[359021959,1745657097027,-989.72,0.0001997,2]
[359021960,1745657097058,-500.0,0.0001997,2]
[359021961,1745657097089,-500.0,0.0001997,2]
[359021962,1745657097120,-500.0,0.0001997,2]
[359021963,1745657097152,-500.0,0.0001997,2]
[359021964,1745657097185,-500.0,0.0001997,2]
[359021965,1745657097217,-633.97,0.0001997,2]
[359021966,1745657097253,-500.0,0.0001997,2]
[359021967,1745657097287,-500.0,0.0001997,2]
[359021968,1745657097556,-768.4,0.0001997,2]
[359021969,1745657097587,-500.0,0.0001997,2]
[359021970,1745657097624,-507.53783246,0.0001997,2]
[359021971,1745657097657,-500.0,0.0001997,2]
[359021972,1745657097691,-441.52484403,0.0001997,2]
[359021973,1745657097727,-500.0,0.0001997,2]
[359021974,1745657097762,-500.0,0.0001997,2]
[359021975,1745657097796,-500.0,0.0001997,2]
[359021976,1745657097831,-500.0,0.0001997,2]
[359021977,1745657097870,-500.0,0.0001997,2]
[359021978,1745657097903,-500.0,0.0001997,2]
[359021979,1745657097937,-187.94807582,0.0001997,2]
[359021980,1745657097970,-500.0,0.0001997,2]
[359021981,1745657098006,-500.0,0.0001997,2]
[359021982,1745657098038,-538.01852055,0.0001997,2]
[359021983,1745657098074,-500.0,0.0001997,2]
[359021984,1745657098116,-500.0,0.0001997,2]
[359021985,1745657098153,-500.0,0.0001997,2]
[359021986,1745657098187,-501.68943795,0.0001997,2]
[359021987,1745657098223,-500.0,0.0001997,2]
[359021988,1745657098257,-500.0,0.0001997,2]
[359021989,1745657098291,-500.0,0.0001997,2]
[359021990,1745657098325,-500.0,0.0001997,2]
[359021991,1745657098357,-305.73912101,0.0001997,2]
[359021992,1745657098389,-593.28311713,0.0001997,2]
[359021993,1745657098425,-500.0,0.0001997,2]
[359021994,1745657098457,-1069.3,0.0001997,2]
[359021995,1745657098490,-550.65397941,0.0001997,2]
[359021996,1745657098524,-500.75,0.0001997,2]
[359021997,1745657098558,-605.21217691,0.0001997,2]
[359021998,1745657098590,-501.6235134,0.0001997,2]
[359021999,1745657098622,-505.4161278,0.0001997,2]
[359022000,1745657098655,-591.33,0.0001997,2]
[359022001,1745657098689,-500.0,0.0001997,2]
[359022002,1745657098721,-1021.94,0.0001997,2]
[359022003,1745657098756,-500.0,0.0001997,2]
[359022004,1745657098788,-679.4,0.0001997,2]
[359022005,1745657098820,-500.0,0.0001997,2]
[359022006,1745657098853,-569.21,0.0001997,2]
[359022007,1745657098885,-995.57,0.0001997,2]
[359022008,1745657098920,-1192.77,0.0001997,2]
[359022009,1745657098952,-705.18,0.0001997,2]
[359022010,1745657098984,-732.77,0.0001997,2]
[359022011,1745657099017,-500.0,0.0001997,2]
[359022012,1745657099048,-500.0,0.0001997,2]
[359022013,1745657099081,-500.0,0.0001997,2]
[359022014,1745657099114,-552.34,0.0001997,2]
[359022015,1745657099340,-942.77,0.0001997,2]
[359022016,1745657099374,-1740.42,0.0001997,2]
[359022017,1745657099422,-1113.08,0.0001997,2]
[359022018,1745657099459,-500.0,0.0001997,2]
[359022019,1745657099495,-616.20716116,0.0001997,2]
[359022020,1745657099533,-500.0,0.0001997,2]
[359022021,1745657099568,-506.07854156,0.0001997,2]
[359022022,1745657099602,-500.0,0.0001997,2]
[359022023,1745657099638,-947.84,0.0001997,2]
[359022024,1745657099673,-500.0,0.0001997,2]
[359022025,1745657099710,-509.06,0.0001997,2]
[359022026,1745657099744,-667.98,0.0001997,2]
[359022027,1745657099784,-500.0,0.0001997,2]
[359022028,1745657099819,-500.0,0.0001997,2]
[359022029,1745657099854,-500.0,0.0001997,2]
[359022030,1745657099888,-693.03,0.0001997,2]
[359022031,1745657099921,-500.0,0.0001997,2]
[359022032,1745657099956,-500.0,0.0001997,2]
[359022033,1745657099990,-500.0,0.0001997,2]
[359022034,1745657100030,-690.94,0.0001997,2]
[359022035,1745657100067,-722.18,0.0001997,2]
[359022036,1745657100102,-500.0,0.0001997,2]
[359022037,1745657100136,-500.0,0.0001997,2]
[359022038,1745657100169,-500.0,0.0001997,2]
[359022039,1745657100203,-508.73341274,0.0001997,2]
[359022040,1745657100238,-579.22,0.0001997,2]
[359022041,1745657100276,-507.29,0.0001997,2]
[359022042,1745657100309,-500.0,0.0001997,2]
[359022043,1745657100342,-1262.65,0.0001997,2]
[359022044,1745657100374,-500.0,0.0001997,2]
[359022045,1745657100406,-500.0,0.0001997,2]
[359022046,1745657100438,-500.0,0.0001997,2]
[359022047,1745657100469,-500.0,0.0001997,2]
[359022048,1745657100499,-1077.54,0.0001997,2]
[359022049,1745657100535,-1301.9,0.0001997,2]
[359022050,1745657100567,-500.0,0.0001997,2]
[359022051,1745657100599,-11826.88,0.0001997,2]
[359022052,1745657100630,-500.0,0.0001997,2]
[359022053,1745657100663,-2061.52,0.0001997,2]
[359022054,1745657100694,-500.0,0.0001997,2]
[359022055,1745657100725,-500.0,0.0001997,2]
[359022056,1745657100760,-500.0,0.0001997,2]
[359022057,1745657100792,-503.96,0.0001997,2]
[359022058,1745657100823,-643.86,0.0001997,2]
[359022059,1745657100861,-835.51,0.0001997,2]
[359022060,1745657100892,-765.41,0.0001997,2]
[359022061,1745657100923,-647.5,0.0001997,2]
[359022062,1745657101145,-791.4,0.0001997,2]
[359022063,1745657101179,-500.0,0.0001997,2]
[359022064,1745657101211,-500.0,0.0001997,2]
[359022065,1745657101243,-500.0,0.0001997,2]
[359022066,1745657101276,-1109.99,0.0001997,2]
[359022067,1745657101307,-500.0,0.0001997,2]
[359022068,1745657101339,-999.04,0.0001997,2]
[359022069,1745657101370,-676.06,0.0001997,2]
[359022070,1745657101402,-500.0,0.0001997,2]
[359022071,1745657101435,-500.0,0.0001997,2]
[359022072,1745657101466,-500.0,0.0001997,2]
[359022073,1745657101498,-549.56,0.0001997,2]
[359022074,1745657101531,-500.0,0.0001997,2]
[359022075,1745657101562,-500.0,0.0001997,2]
[359022076,1745657101594,-910.58,0.0001997,2]
[359022077,1745657101627,-909.3,0.0001997,2]
[359022078,1745657101658,-456.35174672,0.0001997,2]
[359022079,1745657101691,-998.62,0.0001997,2]
[359022080,1745657101723,-500.0,0.0001997,2]
[359022081,1745657101756,-500.0,0.0001997,2]
[359022082,1745657101788,-972.37,0.0001997,2]
[359022083,1745657101820,-943.59,0.0001997,2]
[359022084,1745657101852,-579.53,0.0001997,2]
[359022085,1745657101884,-713.45,0.0001997,2]
[359022086,1745657101917,-500.0,0.0001997,2]
[359022087,1745657101949,-582.77,0.0001997,2]
[359022088,1745657101982,-565.05,0.0001997,2]
[359022089,1745657102017,-899.01,0.0001997,2]
[359022090,1745657102049,-503.08,0.0001997,2]
[359022091,1745657102082,-1118.58,0.0001997,2]
[359022092,1745657102117,-1118.58,0.0001997,2]
[359022093,1745657102149,-837.81,0.0001997,2]
[359022094,1745657102182,-1469.22,0.0001997,2]
[359022095,1745657102214,-911.62,0.0001997,2]
[359022096,1745657102247,-690.63,0.0001997,2]
[359022097,1745657102281,-500.0,0.0001997,2]
[359022098,1745657102313,-500.0,0.0001997,2]
[359022099,1745657102344,-1077.98,0.0001997,2]
[359022100,1745657102374,-701.08,0.0001997,2]
[359022101,1745657102404,-775.14,0.0001997,2]
[359022102,1745657102435,-500.0,0.0001997,2]
[359022103,1745657102466,-955.33,0.0001997,2]
[359022104,1745657102496,-500.0,0.0001997,2]
[359022105,1745657102528,-500.0,0.0001997,2]
[359022106,1745657102558,-500.0,0.0001997,2]
[359022107,1745657102588,-500.0,0.0001997,2]
[359022108,1745657102620,-807.93,0.0001997,2]
[359022109,1745657102837,-500.0,0.0001997,2]
[359022110,1745657102873,-500.0,0.0001997,2]
[359022111,1745657102906,-611.8,0.0001997,2]
[359022112,1745657102938,-500.0,0.0001997,2]
[359022113,1745657102972,-1033.4,0.0001997,2]
[359022114,1745657103012,-500.0,0.0001997,2]
[359022115,1745657103054,-150.0,0.0001997,2]
[359022116,1745657103095,-500.0,0.0001997,2]
[359022117,1745657103133,-500.0,0.0001997,2]
[359022118,1745657103169,-500.0,0.0001997,2]
[359022119,1745657103206,-1052.59,0.0001997,2]
[359022120,1745657103242,-151.95970102,0.0001997,2]
[359022121,1745657103285,-500.0,0.0001997,2]
[359022122,1745657103321,-500.0,0.0001997,2]
[359022123,1745657103356,-1400.54,0.0001997,2]
[359022124,1745657103392,-150.0,0.0001997,2]
[359022125,1745657103427,-813.6,0.0001997,2]
[359022126,1745657103463,-3669.37,0.0001997,2]
[359022127,1745657103497,-500.0,0.0001997,2]
[359022128,1745657103533,-500.0,0.0001997,2]
[359022129,1745657103566,-150.0,0.0001997,2]
[359022130,1745657103602,-500.0,0.0001997,2]
[359022131,1745657103638,-500.0,0.0001997,2]
[359022132,1745657103672,-500.0,0.0001997,2]
[359022133,1745657103706,-500.0,0.0001997,2]
[359022134,1745657103743,-644.97,0.0001997,2]
[359022135,1745657103779,-559.56,0.0001997,2]
[359022136,1745657103813,-500.0,0.0001997,2]
[359022137,1745657103851,-581.44,0.0001997,2]
[359022138,1745657103887,-500.0,0.0001997,2]
[359022139,1745657103922,-970.51,0.0001997,2]
[359022140,1745657103957,-500.0,0.0001997,2]
[359022141,1745657103992,-603.02,0.0001997,2]
[359022142,1745657104030,-680.65,0.0001997,2]
[359022143,1745657104065,-723.33,0.0001997,2]
[359022144,1745657104101,-500.0,0.0001997,2]
[359022145,1745657104136,-763.97,0.0001997,2]
[359022146,1745657104172,-601.83329043,0.0001997,2]
[359022147,1745657104208,-880.82,0.0001997,2]
[359022148,1745657104243,-500.0,0.0001997,2]
[359022149,1745657104280,-500.0,0.0001997,2]
[359022150,1745657104317,-500.0,0.0001997,2]
[359022151,1745657104353,-808.89,0.0001997,2]
[359022152,1745657104389,-500.0,0.0001997,2]
[359022153,1745657104424,-500.0,0.0001997,2]
[359022154,1745657104458,-500.0,0.0001997,2]
[359022155,1745657104493,-579.39,0.0001997,2]
[359022156,1745657104709,-500.0,0.0001997,2]
[359022157,1745657104744,-804.65,0.0001997,2]
[359022158,1745657104781,-545.82954048,0.0001997,2]
[359022159,1745657104815,-500.0,0.0001997,2]
[359022160,1745657104848,-940.99,0.0001997,2]
[359022161,1745657104881,-722.47,0.0001997,2]
[359022162,1745657104914,-568.15,0.0001997,2]
[359022163,1745657104945,-500.0,0.0001997,2]
[359022164,1745657104978,-1669.01,0.0001997,2]
[359022165,1745657105015,-500.0,0.0001997,2]
[359022166,1745657105048,-531.1,0.0001997,2]
[359022167,1745657105081,-684.33,0.0001997,2]
[359022168,1745657105115,-457.62876828,0.0001997,2]
[359022169,1745657105150,-500.0,0.0001997,2]
[359022170,1745657105183,-681.7,0.0001997,2]
[359022171,1745657105217,-500.0,0.0001997,2]
[359022172,1745657105250,-691.91,0.0001997,2]
[359022173,1745657105285,-683.92,0.0001997,2]
[359022174,1745657105317,-500.0,0.0001997,2]
[359022175,1745657105349,-500.0,0.0001997,2]
[359022176,1745657105381,-1167.42,0.0001997,2]
[359022177,1745657105413,-736.0,0.0001997,2]
[359022178,1745657105445,-274.0785439,0.0001997,2]
[359022179,1745657105476,-500.0,0.0001997,2]
[359022180,1745657105509,-500.0,0.0001997,2]
[359022181,1745657105541,-625.69,0.0001997,2]
[359022182,1745657105574,-1496.29,0.0001997,2]
[359022183,1745657105606,-610.26,0.0001997,2]
[359022184,1745657105640,-500.0,0.0001997,2]
[359022185,1745657105672,-968.04,0.0001997,2]
[359022186,1745657105703,-500.0,0.0001997,2]
[359022187,1745657105736,-889.46,0.0001997,2]
[359022188,1745657105767,-587.21,0.0001997,2]
[359022189,1745657105799,-500.0,0.0001997,2]
[359022190,1745657105831,-500.0,0.0001997,2]
[359022191,1745657105864,-500.0,0.0001997,2]
[359022192,1745657105896,-4689.66,0.0001997,2]
[359022193,1745657105926,-1123.92,0.0001997,2]
[359022194,1745657105958,-593.41,0.0001997,2]
[359022195,1745657105990,-500.0,0.0001997,2]
[359022196,1745657106021,-500.0,0.0001997,2]
[359022197,1745657106053,-500.0,0.0001997,2]
[359022198,1745657106086,-799.46,0.0001997,2]
[359022199,1745657106119,-500.0,0.0001997,2]
[359022200,1745657106150,-1252.15,0.0001997,2]
[359022201,1745657106189,-552.52,0.0001997,2]
[359022202,1745657106221,-500.0,0.0001997,2]
[359022203,1745657106428,-500.0,0.0001997,2]
[359022204,1745657106462,-500.0,0.0001997,2]
[359022205,1745657106493,-500.0,0.0001997,2]
[359022206,1745657106527,-1051.71,0.0001997,2]
[359022207,1745657106559,-500.0,0.0001997,2]
[359022208,1745657106591,-290.0,0.0001997,2]
[359022209,1745657106624,-123200.23221347,0.0001997,2]
[359022210,1745657106658,-496411.01306055,0.00019971,2]
[359022211,1745657106689,-354.73181094,0.00019971,2]
[359022212,1745657106721,-577.68487301,0.00019971,2]
[359022213,1745657106752,-500.0,0.00019971,2]
[359022214,1745657106787,-500.0,0.00019971,2]
[359022215,1745657106822,-500.0,0.00019971,2]
[359022216,1745657106855,-447.23996987,0.00019971,2]
[359022217,1745657106887,-493.51758548,0.00019971,2]
[359022218,1745657106917,-500.0,0.00019971,2]
[359022219,1745657106949,-502.83711013,0.00019971,2]
[359022220,1745657106980,-500.0,0.00019971,2]
[359022221,1745657107014,-500.0,0.00019971,2]
[359022222,1745657107046,-500.0,0.00019971,2]
[359022223,1745657107078,-500.0,0.00019971,2]
[359022224,1745657107110,-500.0,0.00019971,2]
[359022225,1745657107142,-500.24315665,0.00019971,2]
[359022226,1745657107176,-500.0,0.00019971,2]
[359022227,1745657107207,-500.00043447,0.00019971,2]
[359022228,1745657107240,-500.0,0.00019971,2]
[359022229,1745657107273,-1344.74,0.00019971,2]
[359022230,1745657107306,-500.0,0.00019971,2]
[359022231,1745657107342,-850.4,0.00019971,2]
[359022232,1745657107373,-500.0,0.00019971,2]
[359022233,1745657107405,-500.0,0.00019971,2]
[359022234,1745657107436,-500.0,0.00019971,2]
[359022235,1745657107468,-500.0,0.00019971,2]
[359022236,1745657107501,-799.21,0.00019971,2]
[359022237,1745657107536,-534.12,0.00019971,2]
[359022238,1745657107566,-534.12,0.00019971,2]
[359022239,1745657107597,-500.0,0.00019971,2]
[359022240,1745657107629,-500.0,0.00019971,2]
[359022241,1745657107659,-500.0,0.00019971,2]
[359022242,1745657107691,-500.0,0.00019971,2]
[359022243,1745657107723,-858.77,0.00019971,2]
[359022244,1745657107754,-2195.89,0.00019971,2]
[359022245,1745657107789,-500.0,0.00019971,2]
[359022246,1745657107821,-500.0,0.00019971,2]
[359022247,1745657107851,-506.7,0.00019971,2]
[359022248,1745657107882,-500.0,0.00019971,2]
[359022249,1745657107914,-651.65,0.00019971,2]
[359022250,1745657108144,-500.0,0.00019971,2]
[359022251,1745657108186,-1038.32,0.00019971,2]
[359022252,1745657108434,-665.28,0.00019971,2]
[359022253,1745657108474,-500.0,0.00019971,2]
[359022254,1745657108514,-500.0,0.00019971,2]
[359022255,1745657108555,-2509.17,0.00019971,2]
[359022256,1745657108596,-500.0,0.00019971,2]
[359022257,1745657108634,-507.19,0.00019971,2]
[359022258,1745657108672,-847.67,0.00019971,2]
[359022259,1745657108709,-738.63,0.00019971,2]
[359022260,1745657108745,-500.0,0.00019971,2]
[359022261,1745657108795,-500.0,0.00019971,2]
[359022262,1745657108828,-500.0,0.00019971,2]
[359022263,1745657108864,-500.0,0.00019971,2]
[359022264,1745657108897,-834.34,0.00019971,2]
[359022265,1745657108930,-500.0,0.00019971,2]
[359022266,1745657108963,-500.0,0.00019971,2]
[359022267,1745657108996,-957.73,0.00019971,2]
[359022268,1745657109033,-1043.77,0.00019971,2]
[359022269,1745657109068,-855.72,0.00019971,2]
[359022270,1745657109102,-500.0,0.00019971,2]
[359022271,1745657109137,-787.3,0.00019971,2]
[359022272,1745657109171,-500.0,0.00019971,2]
[359022273,1745657109205,-586.4,0.00019971,2]
[359022274,1745657109238,-781.99,0.00019971,2]
[359022275,1745657109285,-500.0,0.00019971,2]
[359022276,1745657109321,-981.89,0.00019971,2]
[359022277,1745657109356,-500.0,0.00019971,2]
[359022278,1745657109390,-500.0,0.00019971,2]
[359022279,1745657109427,-755.9,0.00019971,2]
[359022280,1745657109465,-500.0,0.00019971,2]
[359022281,1745657109505,-500.0,0.00019971,2]
[359022282,1745657109549,-500.0,0.00019971,2]
[359022283,1745657109584,-899.38,0.00019971,2]
[359022284,1745657109618,-500.0,0.00019971,2]
[359022285,1745657109652,-550.09293081,0.00019971,2]
[359022286,1745657109686,-500.0,0.00019971,2]
[359022287,1745657109719,-859.96,0.00019971,2]
[359022288,1745657109753,-518.87,0.00019971,2]
[359022289,1745657109792,-500.0,0.00019971,2]
[359022290,1745657109824,-500.0,0.00019971,2]
[359022291,1745657109858,-1117.9,0.00019971,2]
[359022292,1745657109895,-425.34107634,0.00019971,2]
[359022293,1745657109930,-500.0,0.00019971,2]
[359022294,1745657109963,-954.21,0.00019971,2]
[359022295,1745657109996,-2518.134,0.00019971,2]
[359022296,1745657110033,-178.588,0.00019971,2]
[359022297,1745657110267,-500.0,0.00019971,2]
[359022298,1745657110304,-500.0,0.00019971,2]
[359022299,1745657110339,-500.0,0.00019971,2]
[359022300,1745657110373,-500.0,0.00019971,2]
[359022301,1745657110404,-500.0,0.00019971,2]
[359022302,1745657110436,-580.42450499,0.00019971,2]
[359022303,1745657110467,-596.03115319,0.00019971,2]
[359022304,1745657110499,-500.0,0.00019971,2]
[359022305,1745657110535,-500.0,0.00019971,2]
[359022306,1745657110567,-500.0,0.00019971,2]
[359022307,1745657110599,-500.0,0.00019971,2]
[359022308,1745657110631,-500.0,0.00019971,2]
[359022309,1745657110665,-651.83,0.00019971,2]
[359022310,1745657110697,-500.0,0.00019971,2]
[359022311,1745657110728,-500.0,0.00019971,2]
[359022312,1745657110763,-853.24,0.00019971,2]
[359022313,1745657110796,-988.52,0.00019971,2]
[359022314,1745657110829,-500.0,0.00019971,2]